fUST/lending_fUST_20250611
["ID","MTS","AMOUNT","RATE_DAILY","PERIOD"]
[365304769,1749589835657,-400.0,0.00021369,4]
[365304770,1749589835666,-460.0,0.00021369,4]
[365304771,1749589835677,-400.0,0.00021369,4]
[365304772,1749589835687,-460.0,0.00021369,4]
[365304773,1749589835696,-460.0,0.00021369,4]
[365304774,1749589835705,-460.0,0.00021369,4]
[365304775,1749589835714,-460.0,0.00021369,4]
[365304776,1749589835724,-313.75361637,0.00021369,4]
[365304777,1749589835833,-86.24638363,0.00021369,4]
[365304778,1749589835844,-460.0,0.00021369,4]
[365304779,1749589835853,-390.0,0.00021369,4]
[365304780,1749589835863,-400.0,0.00021369,4]
[365304781,1749589835873,-314.00361637,0.00021369,4]
[365304782,1749589837135,-460.0,0.00021095,4]
[365304783,1749589837146,-350.0,0.00021095,4]
[365304784,1749589837156,-85.99638363,0.00021369,4]
[365304785,1749589837166,-400.0,0.00021369,4]
[365304786,1749589837176,-460.0,0.00021369,4]
[365304787,1749589837185,-460.0,0.00021369,4]
[365304788,1749589837195,-460.0,0.00021369,4]
[365304789,1749589837204,-460.0,0.00021369,4]
[365304790,1749589837214,-460.0,0.00021369,4]
[365304791,1749589837223,-460.0,0.00021369,4]
[365304792,1749589837233,-460.0,0.00021369,4]
[365304793,1749589837243,-400.0,0.00021369,4]
[365304795,1749589837252,-183.86314245,0.00021369,4]
[365304796,1749589837262,-400.0,0.00021369,4]
[365304797,1749589837271,-460.0,0.00021369,4]
[365304798,1749589837281,-460.0,0.00021369,4]
[365304799,1749589837290,-525.76,0.00021369,4]
[365304800,1749589837299,-460.0,0.00021369,4]
[365304801,1749589837309,-400.0,0.00021369,4]
[365304803,1749589837318,-400.0,0.00021369,4]
[365304804,1749589837327,-1389.58,0.00021369,4]
[365304805,1749589837338,-460.0,0.00021369,4]
[365304806,1749589837348,-460.0,0.00021369,4]
[365304807,1749589837357,-400.0,0.00021369,4]
[365304808,1749589837366,-460.0,0.00021369,4]
[365304809,1749589837376,-460.0,0.00021369,4]
[365304810,1749589837385,-460.0,0.00021369,4]
[365304811,1749589837395,-400.0,0.00021369,4]
[365304812,1749589837404,-460.0,0.00021369,4]
[365304813,1749589837413,-390.0,0.00021369,4]
[365304814,1749589837423,-460.0,0.00021369,4]
[365304815,1749589837432,-460.0,0.00021369,4]
[365304816,1749589837442,-400.0,0.00021369,4]
[365304817,1749589837450,-460.0,0.00021369,4]
[365304818,1749589837459,-400.0,0.00021369,4]
[365304820,1749589837468,-460.0,0.00021369,4]
[365304822,1749589837477,-430.0,0.00021369,4]
[365304824,1749589837486,-460.0,0.00021369,4]
[365304826,1749589837496,-1521.47,0.00021369,4]
[365304828,1749589837505,-460.0,0.00021369,4]
[365304830,1749589837515,-400.0,0.00021369,4]
[365304832,1749589837524,-460.0,0.00021369,4]
[365304834,1749589837533,-400.0,0.00021369,4]
[365304836,1749589837542,-460.0,0.00021369,4]
[365304838,1749589837552,-460.0,0.00021369,4]
[365304840,1749589837561,-460.0,0.00021369,4]
[365304842,1749589837571,-460.0,0.00021369,4]
[365304844,1749589837580,-460.0,0.00021369,4]
[365304846,1749589837589,-430.0,0.00021369,4]
[365304848,1749589837600,-460.0,0.00021369,4]
[365304850,1749589837610,-400.0,0.00021369,4]
[365304852,1749589837620,-460.0,0.00021369,4]
[365304854,1749589837629,-460.0,0.00021369,4]
[365304856,1749589837639,-430.0,0.00021369,4]
[365304858,1749589837648,-460.0,0.00021369,4]
[365304860,1749589837657,-460.0,0.00021369,4]
[365304862,1749589837667,-460.0,0.00021369,4]
[365304864,1749589837676,-460.0,0.00021369,4]
[365304866,1749589837685,-320.0,0.00021369,4]
[365304868,1749589837694,-460.0,0.00021369,4]
[365304870,1749589837703,-400.0,0.00021369,4]
[365304872,1749589837713,-460.0,0.00021369,4]
[365304874,1749589837722,-400.0,0.00021369,4]
[365304876,1749589837731,-460.0,0.00021369,4]
[365304878,1749589837741,-1212.62,0.00021369,4]
[365304880,1749589837753,-460.0,0.00021369,4]
[365304882,1749589837762,-460.0,0.00021369,2]
[365304884,1749589837771,-460.0,0.00021369,4]
[365304887,1749589837781,-400.0,0.00021369,4]
[365304890,1749589837791,-460.0,0.00021369,4]
[365304893,1749589837801,-460.0,0.00021369,4]
[365304896,1749589837810,-460.0,0.00021369,4]
[365304899,1749589837820,-460.0,0.00021369,4]
[365304902,1749589837830,-460.0,0.00021369,4]
[365304905,1749589837841,-400.0,0.00021369,4]
[365304909,1749589837852,-444.15458438,0.00021369,4]
[365304912,1749589837861,-1247.94,0.00021369,4]
[365304914,1749589837871,-460.0,0.00021369,4]
[365304918,1749589837880,-460.0,0.00021369,4]
[365304920,1749589837889,-330.0,0.00021369,4]
[365304922,1749589837899,-400.0,0.00021369,4]
[365304924,1749589837908,-1137.32,0.00021369,4]
[365304926,1749589837918,-1202.04,0.00021369,4]
[365304928,1749589837927,-460.0,0.00021369,4]
[365304930,1749589837936,-460.0,0.00021369,4]
[365304932,1749589837945,-460.0,0.00021369,4]
[365304933,1749589837955,-460.0,0.00021369,4]
[365304934,1749589837965,-460.0,0.00021369,4]
[365304935,1749589837975,-320.0,0.00021369,4]
[365304936,1749589837984,-460.0,0.00021369,4]
[365304937,1749589837994,-460.0,0.00021369,4]
[365304938,1749589838003,-400.0,0.00021369,4]
[365304939,1749589838012,-1523.18,0.00021369,4]
[365304940,1749589838021,-460.0,0.00021369,4]
[365304941,1749589838031,-933.91,0.00021369,4]
[365304943,1749589838040,-460.0,0.00021369,4]
[365304944,1749589838049,-500.65,0.00021369,4]
[365304945,1749589838058,-460.0,0.00021369,4]
[365304946,1749589838068,-460.0,0.00021369,4]
[365304947,1749589838078,-400.0,0.00021369,4]
[365304948,1749589838087,-1065.64,0.00021369,4]
[365304949,1749589838097,-460.0,0.00021369,4]
[365304950,1749589838106,-461.75,0.00021369,4]
[365304951,1749589838116,-400.0,0.00021369,4]
[365304952,1749589838125,-460.0,0.00021369,4]
[365304953,1749589838135,-460.0,0.00021369,4]
[365304954,1749589838144,-460.0,0.00021369,4]
[365304955,1749589838154,-460.0,0.00021369,4]
[365304956,1749589838163,-460.0,0.00021369,4]
[365304957,1749589838173,-400.0,0.00021369,4]
[365304958,1749589838182,-460.0,0.00021369,4]
[365304959,1749589838192,-460.0,0.00021369,4]
[365304960,1749589838202,-400.0,0.00021369,4]
[365304961,1749589838211,-460.0,0.00021369,4]
[365304962,1749589838221,-460.0,0.00021369,4]
[365304963,1749589838231,-460.0,0.00021369,4]
[365304964,1749589838240,-460.0,0.00021369,4]
[365304965,1749589838250,-473.01,0.00021369,4]
[365304966,1749589838260,-400.0,0.00021369,4]
[365304967,1749589838269,-460.0,0.00021369,4]
[365304968,1749589838278,-460.0,0.00021369,4]
[365304969,1749589838288,-460.0,0.00021369,4]
[365304970,1749589838298,-460.0,0.00021369,4]
[365304971,1749589838307,-460.0,0.00021369,4]
[365304972,1749589838316,-420.0,0.00021369,4]
[365304973,1749589838326,-460.0,0.00021369,4]
[365304974,1749589838335,-500.60381911,0.00021373,2]
[365304975,1749589838345,-607.72295623,0.00021373,2]
[365304976,1749589838355,-487.83526815,0.00021373,2]
[365304977,1749589838365,-502.27108639,0.00021373,2]
[365304978,1749589838374,-500.0,0.00021373,2]
[365304979,1749589838383,-460.0,0.00021643,4]
[365304980,1749589838393,-360.0,0.00021643,4]
[365304981,1749589838402,-360.0,0.00021643,4]
[365304982,1749589838412,-460.0,0.00021643,4]
[365304983,1749589838422,-460.0,0.00021643,4]
[365304984,1749589838432,-313.68576195,0.00021643,4]
[365304985,1749589838441,-460.0,0.00021643,4]
[365304986,1749589838554,-460.0,0.00021643,4]
[365304987,1749589838564,-460.0,0.00021643,4]
[365304988,1749589838574,-400.0,0.00021643,4]
[365304989,1749589838584,-460.0,0.00021643,4]
[365304990,1749589838595,-460.0,0.00021643,4]
[365304991,1749589838606,-400.0,0.00021643,4]
[365304992,1749589838616,-460.0,0.00021643,4]
[365304993,1749589838626,-460.0,0.00021643,4]
[365304994,1749589838636,-460.0,0.00021643,4]
[365304995,1749589838645,-460.0,0.00021643,4]
[365304996,1749589838655,-390.0,0.00021643,4]
[365304997,1749589838664,-460.0,0.00021643,4]
[365304998,1749589838674,-460.0,0.00021643,4]
[365304999,1749589838684,-430.0,0.00021643,4]
[365305000,1749589838693,-460.0,0.00021643,4]
[365305001,1749589838703,-460.0,0.00021643,4]
[365305002,1749589838713,-360.0,0.00021643,4]
[365305003,1749589838722,-460.0,0.00021643,4]
[365305004,1749589838732,-460.0,0.00021643,4]
[365305005,1749589838741,-1389.58,0.00021643,4]
[365305006,1749589838752,-460.0,0.00021643,4]
[365305007,1749589838761,-460.0,0.00021643,4]
[365305008,1749589838770,-460.0,0.00021643,4]
[365305009,1749589838779,-460.0,0.00021643,4]
[365305010,1749589838790,-230.0,0.00021643,4]
[365305011,1749589838799,-460.0,0.00021643,4]
[365305012,1749589838808,-460.0,0.00021643,4]
[365305013,1749589838818,-460.0,0.00021643,4]
[365305014,1749589838828,-460.0,0.00021643,4]
[365305015,1749589838838,-460.0,0.00021643,4]
[365305016,1749589838848,-390.0,0.00021643,4]
[365305017,1749589838858,-1521.47,0.00021643,4]
[365305018,1749589838867,-460.0,0.00021643,4]
[365305019,1749589838877,-460.0,0.00021643,4]
[365305020,1749589838886,-460.0,0.00021643,4]
[365305021,1749589838896,-460.0,0.00021643,4]
[365305022,1749589838905,-460.0,0.00021643,4]
[365305023,1749589838915,-460.0,0.00021643,4]
[365305024,1749589838925,-380.0,0.00021643,4]
[365305025,1749589838934,-460.0,0.00021643,4]
[365305026,1749589838944,-380.0,0.00021643,4]
[365305027,1749589838954,-460.0,0.00021643,4]
[365305028,1749589838964,-460.0,0.00021643,4]
[365305029,1749589838974,-460.0,0.00021643,4]
[365305030,1749589838983,-460.0,0.00021643,4]
[365305031,1749589838993,-460.0,0.00021643,4]
[365305032,1749589839002,-460.0,0.00021643,4]
[365305033,1749589839012,-460.0,0.00021643,4]
[365305034,1749589839022,-1212.62,0.00021643,4]
[365305035,1749589839031,-460.0,0.00021643,4]
[365305036,1749589839041,-460.0,0.00021643,2]
[365305037,1749589839050,-460.0,0.00021643,4]
[365305038,1749589839060,-460.0,0.00021643,4]
[365305039,1749589839069,-460.0,0.00021643,4]
[365305040,1749589839078,-460.0,0.00021643,4]
[365305041,1749589839088,-460.0,0.00021643,4]
[365305042,1749589839099,-460.0,0.00021643,4]
[365305043,1749589839109,-1247.94,0.00021643,4]
[365305044,1749589839120,-460.0,0.00021643,4]
[365305045,1749589839129,-350.0,0.00021643,4]
[365305046,1749589839139,-1137.32,0.00021643,4]
[365305048,1749589839149,-1202.04,0.00021643,4]
[365305050,1749589839159,-460.0,0.00021643,4]
[365305051,1749589839169,-460.0,0.00021643,4]
[365305052,1749589839178,-460.0,0.00021643,4]
[365305053,1749589839188,-460.0,0.00021643,4]
[365305054,1749589839198,-460.0,0.00021643,4]
[365305055,1749589839208,-460.0,0.00021643,4]
[365305056,1749589839218,-460.0,0.00021643,4]
[365305057,1749589839228,-1523.18,0.00021643,4]
[365305058,1749589839237,-490.46050924,0.00021643,4]
[365305059,1749589839248,-933.91,0.00021643,4]
[365305060,1749589839258,-460.0,0.00021643,4]
[365305061,1749589839267,-370.0,0.00021643,4]
[365305062,1749589839277,-460.0,0.00021643,4]
[365305063,1749589839287,-1065.64,0.00021643,4]
[365305064,1749589839296,-460.0,0.00021643,4]
[365305065,1749589839306,-461.75,0.00021643,4]
[365305066,1749589839315,-460.0,0.00021643,4]
[365305067,1749589839324,-460.0,0.00021643,4]
[365305068,1749589839334,-460.0,0.00021643,4]
[365305069,1749589839343,-460.0,0.00021643,4]
[365305070,1749589839354,-370.0,0.00021643,4]
[365305071,1749589839364,-460.0,0.00021643,4]
[365305072,1749589839374,-460.0,0.00021643,4]
[365305073,1749589839383,-460.0,0.00021643,4]
[365305074,1749589839392,-460.0,0.00021643,4]
[365305075,1749589839402,-460.0,0.00021643,4]
[365305076,1749589839411,-460.0,0.00021643,4]
[365305077,1749589839421,-473.01,0.00021643,4]
[365305078,1749589839430,-460.0,0.00021643,4]
[365305079,1749589839439,-460.0,0.00021643,4]
[365305080,1749589839449,-460.0,0.00021643,4]
[365305081,1749589839459,-370.0,0.00021643,4]
[365305082,1749589839468,-460.0,0.00021643,4]
[365305083,1749589839478,-396.68944584,0.00021756,2]
[365305084,1749589839487,-500.0,0.00021806,2]
[365305085,1749589839497,-502.25716102,0.00021806,2]
[365305086,1749589839506,-500.0,0.00021806,2]
[365305087,1749589839515,-415.975802,0.00021806,2]
[365305088,1749589839525,-300.0,0.00021879,2]
[365305090,1749589839534,-2762.80058702,0.000219,6]
[365305092,1749589839543,-340.0,0.00021917,4]
[365305094,1749589839552,-360.0,0.00021917,4]
[365305096,1749589839562,-460.0,0.00021917,4]
[365305098,1749589839571,-460.0,0.00021917,4]
[365305099,1749589839580,-460.0,0.00021917,4]
[365305100,1749589839589,-460.0,0.00021917,4]
[365305101,1749589839599,-505.29982678,0.00021917,2]
[365305102,1749589839608,-460.0,0.00021917,4]
[365305103,1749589839618,-460.0,0.00021917,4]
[365305104,1749589839627,-460.0,0.00021917,4]
[365305105,1749589839637,-472.11930906,0.00021917,4]
[365305106,1749589839647,-326.37957184,0.00021917,4]
[365305107,1749589839656,-460.0,0.00021917,4]
[365305108,1749589839665,-460.0,0.00021917,4]
[365305109,1749589839675,-460.0,0.00021917,4]
[365305110,1749589839684,-460.0,0.00021917,4]
[365305111,1749589839695,-460.0,0.00021917,4]
[365305113,1749589839704,-380.0,0.00021917,4]
[365305115,1749589839714,-460.0,0.00021917,4]
[365305117,1749589839723,-1389.58,0.00021917,4]
[365305119,1749589839733,-460.0,0.00021917,4]
[365305121,1749589839743,-460.0,0.00021917,4]
[365305123,1749589839754,-200.4939083,0.00021917,4]
[365305125,1749589839763,-460.0,0.00021917,4]
[365305127,1749589839772,-460.0,0.00021917,4]
[365305129,1749589839781,-460.0,0.00021917,4]
[365305131,1749589839792,-460.0,0.00021917,4]
[365305133,1749589839801,-380.0,0.00021917,4]
[365305135,1749589839810,-460.0,0.00021917,4]
[365305137,1749589839820,-1521.47,0.00021917,4]
[365305139,1749589839830,-460.0,0.00021917,4]
[365305141,1749589839839,-460.0,0.00021917,4]
[365305143,1749589839848,-460.0,0.00021917,4]
[365305145,1749589839857,-460.0,0.00021917,4]
[365305147,1749589839866,-460.0,0.00021917,4]
[365305149,1749589839875,-460.0,0.00021917,4]
[365305151,1749589839885,-460.0,0.00021917,4]
[365305153,1749589839894,-460.0,0.00021917,4]
[365305155,1749589839903,-380.0,0.00021917,4]
[365305157,1749589839912,-460.0,0.00021917,4]
[365305159,1749589839922,-460.0,0.00021917,4]
[365305161,1749589839931,-460.0,0.00021917,4]
[365305163,1749589839940,-380.0,0.00021917,4]
[365305165,1749589839950,-380.0,0.00021917,4]
[365305167,1749589839959,-1212.62,0.00021917,4]
[365305169,1749589839968,-349.38179493,0.00021917,4]
[365305171,1749589839977,-460.0,0.00021917,2]
[365305173,1749589839986,-460.0,0.00021917,4]
[365305175,1749589839995,-460.0,0.00021917,4]
[365305177,1749589840005,-460.0,0.00021917,4]
[365305179,1749589840014,-460.0,0.00021917,4]
[365305181,1749589840024,-460.0,0.00021917,4]
[365305183,1749589840034,-460.0,0.00021917,4]
[365305185,1749589840043,-1247.94,0.00021917,4]
[365305187,1749589840053,-460.0,0.00021917,4]
[365305189,1749589840062,-1137.32,0.00021917,4]
[365305191,1749589840072,-1202.04,0.00021917,4]
[365305193,1749589840081,-460.0,0.00021917,4]
[365305195,1749589840090,-440.0,0.00021917,4]
[365305197,1749589840101,-460.0,0.00021917,4]
[365305199,1749589840111,-215.91709914,0.00021917,4]
[365305201,1749589840120,-460.0,0.00021917,4]
[365305203,1749589840131,-460.0,0.00021917,4]
[365305205,1749589840140,-460.0,0.00021917,4]
[365305207,1749589840150,-1523.18,0.00021917,4]
[365305209,1749589840161,-933.91,0.00021917,4]
[365305211,1749589840171,-460.0,0.00021917,4]
[365305213,1749589840180,-460.0,0.00021917,4]
[365305215,1749589840190,-1065.64,0.00021917,4]
[365305217,1749589840199,-410.0,0.00021917,4]
[365305219,1749589840208,-461.75,0.00021917,4]
[365305221,1749589840219,-360.0,0.00021917,4]
[365305223,1749589840228,-460.0,0.00021917,4]
[365305225,1749589840238,-460.0,0.00021917,4]
[365305227,1749589840247,-460.0,0.00021917,4]
[365305229,1749589840256,-460.0,0.00021917,4]
[365305231,1749589840267,-460.0,0.00021917,4]
[365305233,1749589840276,-460.0,0.00021917,4]
[365305235,1749589840286,-460.0,0.00021917,4]
[365305237,1749589840295,-460.0,0.00021917,4]
[365305240,1749589840304,-460.0,0.00021917,4]
[365305243,1749589840313,-473.01,0.00021917,4]
[365305245,1749589840322,-460.0,0.00021917,4]
[365305247,1749589840331,-460.0,0.00021917,4]
[365305249,1749589840341,-460.0,0.00021917,4]
[365305251,1749589840351,-334.16367049,0.00021917,4]
[365305253,1749589840360,-493.81778773,0.00021918,2]
[365305255,1749589840369,-349.96842948,0.00021921,2]
[365305257,1749589840378,-175.06123859,0.00021946,2]
[365305259,1749589840388,-281.0,0.00021983,2]
[365305261,1749589840397,-163.69092393,0.00021998,2]
[365305262,1749589840406,-500.0,0.00021999,2]
[365305264,1749589840415,-500.0,0.00021999,2]
[365305266,1749589840424,-500.0,0.00021999,2]
[365305268,1749589840433,-500.0,0.00021999,2]
[365305271,1749589840442,-500.0,0.00021999,2]
[365305273,1749589840451,-500.0,0.00021999,2]
[365305275,1749589840460,-500.0,0.00021999,2]
[365305277,1749589840469,-487.55612339,0.00021999,2]
[365305279,1749589840479,-817.28,0.00022,7]
[365305281,1749589840487,-62216.1,0.00022,7]
[365305282,1749589840496,-213.1263252,0.00022,7]
[365305284,1749589840505,-842.5625,0.00022,7]
[365305287,1749589840515,-2762.80058687,0.00022003,6]
[365305289,1749589840524,-500.0,0.00022033,2]
[365305291,1749589840533,-500.0,0.00022033,2]
[365305293,1749589840542,-504.42654874,0.00022041,2]
[365305295,1749589840551,-500.0,0.00022041,2]
[365305297,1749589840561,-484.15155869,0.00022041,2]
[365305299,1749589840570,-500.0,0.00022041,2]
[365305301,1749589840579,-600.0,0.00022041,2]
[365305303,1749589840588,-500.0,0.00022041,2]
[365305305,1749589840598,-505.78867747,0.00022041,2]
[365305307,1749589840607,-500.0,0.00022041,2]
[365305309,1749589840616,-500.0,0.00022041,2]
[365305311,1749589840625,-500.0,0.00022041,2]
[365305313,1749589840634,-500.0,0.00022041,2]
[365305315,1749589840644,-2762.80058687,0.00022107,6]
[365305317,1749589840653,-3846.16,0.00022117,2]
[365305318,1749589840662,-500.0,0.00022138,2]
[365305320,1749589840671,-500.0,0.00022157,2]
[365305322,1749589840681,-460.0,0.00022191,4]
[365305324,1749589840690,-460.0,0.00022191,4]
[365305325,1749589840699,-539.30674547,0.00022191,4]
[365305326,1749589840708,-380.0,0.00022191,4]
[365305327,1749589840799,-460.0,0.00022191,4]
[365305328,1749589840809,-460.0,0.00022191,4]
[365305329,1749589840819,-380.0,0.00022191,4]
[365305330,1749589840830,-460.0,0.00022191,4]
[365305331,1749589840839,-460.0,0.00022191,4]
[365305332,1749589840848,-460.0,0.00022191,4]
[365305333,1749589840857,-460.0,0.00022191,4]
[365305334,1749589840866,-460.0,0.00022191,4]
[365305335,1749589840875,-360.0,0.00022191,4]
[365305336,1749589840885,-1389.58,0.00022191,4]
[365305337,1749589840894,-460.0,0.00022191,4]
[365305338,1749589840903,-460.0,0.00022191,4]
[365305339,1749589840913,-460.0,0.00022191,4]
[365305340,1749589840922,-460.0,0.00022191,4]
[365305341,1749589840932,-460.0,0.00022191,4]
[365305342,1749589840941,-460.0,0.00022191,4]
[365305343,1749589840951,-460.0,0.00022191,4]
[365305344,1749589840960,-1521.47,0.00022191,4]
[365305345,1749589840969,-460.0,0.00022191,4]
[365305346,1749589840978,-460.0,0.00022191,4]
[365305347,1749589840988,-460.0,0.00022191,4]
[365305348,1749589840998,-460.0,0.00022191,4]
[365305349,1749589841007,-460.0,0.00022191,4]
[365305350,1749589841016,-460.0,0.00022191,4]
[365305351,1749589841025,-460.0,0.00022191,4]
[365305352,1749589841034,-460.0,0.00022191,4]
[365305353,1749589841044,-460.0,0.00022191,4]
[365305354,1749589841053,-460.0,0.00022191,4]
[365305355,1749589841062,-460.0,0.00022191,4]
[365305356,1749589841071,-1212.62,0.00022191,4]
[365305357,1749589841081,-460.0,0.00022191,2]
[365305358,1749589841091,-460.0,0.00022191,4]
[365305359,1749589841101,-460.0,0.00022191,4]
[365305360,1749589841111,-334.94652429,0.00022191,4]
[365305361,1749589841120,-260.0,0.00022191,4]
[365305362,1749589841129,-460.0,0.00022191,4]
[365305363,1749589841139,-360.0,0.00022191,4]
[365305364,1749589841148,-1247.94,0.00022191,4]
[365305365,1749589841158,-460.0,0.00022191,4]
[365305366,1749589841167,-1137.32,0.00022191,4]
[365305367,1749589841176,-1202.04,0.00022191,4]
[365305368,1749589841186,-460.0,0.00022191,4]
[365305369,1749589841195,-460.0,0.00022191,4]
[365305370,1749589841205,-460.0,0.00022191,4]
[365305371,1749589841214,-173.99041136,0.00022191,4]
[365305372,1749589841223,-460.0,0.00022191,4]
[365305373,1749589841233,-1523.18,0.00022191,4]
[365305374,1749589841243,-933.91,0.00022191,4]
[365305375,1749589841252,-460.0,0.00022191,4]
[365305376,1749589841261,-460.0,0.00022191,4]
[365305377,1749589841271,-1065.64,0.00022191,4]
[365305378,1749589841280,-461.75,0.00022191,4]
[365305379,1749589841290,-460.0,0.00022191,4]
[365305380,1749589841299,-460.0,0.00022191,4]
[365305381,1749589841309,-460.0,0.00022191,4]
[365305382,1749589841318,-460.0,0.00022191,4]
[365305383,1749589841327,-460.0,0.00022191,4]
[365305384,1749589841337,-460.0,0.00022191,4]
[365305385,1749589841347,-460.0,0.00022191,4]
[365305386,1749589841356,-460.0,0.00022191,4]
[365305387,1749589841365,-460.0,0.00022191,4]
[365305388,1749589841374,-473.01,0.00022191,4]
[365305389,1749589841383,-460.0,0.00022191,4]
[365305390,1749589841393,-460.0,0.00022191,4]
[365305391,1749589841402,-460.0,0.00022191,4]
[365305392,1749589841411,-226.56573406,0.000222,69]
[365305393,1749589841420,-226.56573404,0.000222,69]
[365305394,1749589841430,-2762.80058687,0.0002221,6]
[365305395,1749589841439,-2762.80058687,0.00022314,7]
[365305396,1749589841449,-226.56573404,0.00022397,70]
[365305397,1749589841460,-2762.80058687,0.00022417,7]
[365305398,1749589841469,-460.0,0.00022465,4]
[365305399,1749589841479,-460.0,0.00022465,4]
[365305400,1749589841488,-460.0,0.00022465,4]
[365305401,1749589841497,-460.0,0.00022465,4]
[365305402,1749589841506,-460.0,0.00022465,4]
[365305403,1749589841516,-460.0,0.00022465,4]
[365305404,1749589841525,-400.0,0.00022465,4]
[365305405,1749589841535,-460.0,0.00022465,4]
[365305406,1749589841544,-460.0,0.00022465,4]
[365305407,1749589841554,-1389.58,0.00022465,4]
[365305408,1749589841563,-460.0,0.00022465,4]
[365305409,1749589841572,-460.0,0.00022465,4]
[365305410,1749589841581,-460.0,0.00022465,4]
[365305411,1749589841591,-460.0,0.00022465,4]
[365305412,1749589841601,-460.0,0.00022465,4]
[365305413,1749589841611,-460.0,0.00022465,4]
[365305414,1749589841620,-460.0,0.00022465,4]
[365305415,1749589841629,-1521.47,0.00022465,4]
[365305416,1749589841638,-460.0,0.00022465,4]
[365305417,1749589841647,-460.0,0.00022465,4]
[365305418,1749589841658,-460.0,0.00022465,4]
[365305419,1749589841667,-460.0,0.00022465,4]
[365305420,1749589841676,-263.60690955,0.00022465,4]
[365305421,1749589841686,-460.0,0.00022465,4]
[365305422,1749589841695,-460.0,0.00022465,4]
[365305423,1749589841704,-460.0,0.00022465,4]
[365305424,1749589841713,-460.0,0.00022465,4]
[365305425,1749589841722,-460.0,0.00022465,4]
[365305426,1749589841731,-460.0,0.00022465,4]
[365305427,1749589841740,-1212.62,0.00022465,4]
[365305428,1749589841754,-460.0,0.00022465,2]
[365305429,1749589841764,-320.0,0.00022465,4]
[365305430,1749589841773,-460.0,0.00022465,4]
[365305431,1749589841782,-460.0,0.00022465,4]
[365305432,1749589841793,-1247.94,0.00022465,4]
[365305433,1749589841802,-410.0,0.00022465,4]
[365305434,1749589841816,-1137.32,0.00022465,4]
[365305435,1749589841828,-1202.04,0.00022465,4]
[365305436,1749589841837,-460.0,0.00022465,4]
[365305437,1749589841847,-460.0,0.00022465,4]
[365305438,1749589841857,-460.0,0.00022465,4]
[365305439,1749589841866,-460.0,0.00022465,4]
[365305440,1749589841875,-1523.18,0.00022465,4]
[365305441,1749589841884,-933.91,0.00022465,4]
[365305442,1749589841894,-460.0,0.00022465,4]
[365305443,1749589841903,-460.0,0.00022465,4]
[365305444,1749589841913,-1065.64,0.00022465,4]
[365305445,1749589841923,-461.75,0.00022465,4]
[365305446,1749589841932,-460.0,0.00022465,4]
[365305447,1749589841944,-460.0,0.00022465,4]
[365305448,1749589841954,-240.0,0.00022465,4]